bitfinex-derivatives/quotes_ETHF0:USTF0_20250410
["timestamp","ask_amount","ask_price","bid_price","bid_amount"]
[1744282557321,3.88293,1592.2,1592.1,7.39515]
[1744282557519,1.25703,1592.2,1592.1,7.39515]
[1744282558023,2.80821,1592.3,1592.2,1.25697]
[1744282558223,1.25691,1592.3,1592.2,7.16767]
[1744282558620,3.86977,1592.4,1592.2,7.16767]
[1744282559019,1.25689,1592.3,1592.2,7.16767]
[1744282559421,1.25689,1592.3,1592.2,5.9107]
[1744282559616,1.25697,1592.2,1592.1,4.44144019]
[1744282559817,1.25697,1592.2,1592.1,5.69849019]
[1744282560121,1.25697,1592.2,1592.1,4.44144019]
[1744282560321,1.25697,1592.2,1592.1,45.24144019]
[1744282560621,1.25697,1592.2,1592.1,46.49849019]
[1744282560817,1.5513,1592.3,1592.2,1.25697]
[1744282561025,1.5513,1592.3,1592.2,4.46477]
[1744282561212,1.5513,1592.3,1592.2,6.17067]
[1744282561418,8.97511,1592.9,1592.5,1.2567]
[1744282561661,1.25663,1592.7,1592.6,3.2078]
[1744282561928,3.93996,1592.8,1592.6,6.17033]
[1744282562124,5.8725009,1593.0,1592.8,1.25649]
[1744282562426,2.88022,1592.9,1592.8,7.6398]
[1744282562927,1.6238,1592.9,1592.8,8.8963]
[1744282563726,1.6238,1592.9,1592.8,10.5659]
[1744282564320,1.6238,1592.9,1592.8,7.6398]
[1744282564529,2.88022,1592.9,1592.8,7.6398]
[1744282565634,2.88022,1592.9,1592.8,9.3094]
[1744282566228,1.2565,1592.8,1592.6,5.6676]
[1744282566426,1.5432,1592.8,1592.7,4.46438]
[1744282566627,1.25646,1592.9,1592.7,4.46438]
[1744282566828,2.79966,1592.9,1592.8,2.8461]
[1744282567030,2.79966,1592.9,1592.8,1.5896]
[1744282567232,1.2565,1592.8,1592.7,3.2078]
[1744282567422,2.7997,1592.8,1592.7,4.46438]
[1744282567829,1.25647,1592.9,1592.8,1.2565]
[1744282568034,2.79967,1592.9,1592.8,1.2565]
[1744282568333,2.79967,1592.9,1592.8,2.8461]
[1744282568828,1.25647,1592.9,1592.8,2.8461]
[1744282569024,2.79951,1593.1,1592.9,1.25642]
[1744282569223,1.0146,1593.2,1593.0,1.5896]
[1744282569425,1.0146,1593.2,1593.1,4.46406]
[1744282569631,1.0146,1593.2,1593.1,5.54576]
[1744282570429,2.27078,1593.2,1593.1,5.54576]
[1744282570630,3.82758,1593.2,1593.1,4.2895]
[1744282570833,3.82758,1593.2,1592.9,5.51324019]
[1744282570834,1.25634,1593.0,1592.9,3.21724019]
[1744282571428,1.25634,1593.0,1592.9,4.47366019]
[1744282571634,2.81314,1593.0,1592.9,3.21724019]
[1744282571830,2.81314,1593.0,1592.9,0.00944019]
[1744282576837,1.25634,1593.0,1592.9,6.11696019]
[1744282577039,1.25634,1593.0,1592.9,4.86054019]
[1744282577040,2.81664,1593.0,1592.9,4.86054019]
[1744282578139,2.81664,1593.0,1592.9,0.00944019]
[1744282578634,10.68997,1593.5,1592.9,0.00944019]
[1744282578635,16.29201802,1593.9,1592.9,11.77966334]
[1744282578829,11.1738709,1593.8,1593.2,4.46395]
[1744282579031,3.7419,1593.7,1593.3,4.409]
[1744282579232,1.25597,1593.5,1593.3,46.4651]
[1744282579432,3.34176,1593.7,1593.4,1.25599]
[1744282579631,3.34176,1593.7,1593.5,1.25595]
[1744282579632,1.656,1593.6,1593.5,1.25595]
[1744282579838,1.0079,1593.7,1593.5,2.80015]
[1744282580056,2.6639,1593.7,1593.6,1.25587]
[1744282580236,2.6639,1593.7,1593.6,2.80007]
[1744282580437,3.91969,1593.7,1593.6,1.5442]
[1744282580641,2.6639,1593.7,1593.4,4.3016]
[1744282580839,2.6639,1593.7,1593.6,1.25587]
[1744282581135,3.91969,1593.7,1593.6,1.25587]
[1744282581336,1.25587,1593.6,1593.5,1.5442]
[1744282581546,2.93967,1593.6,1593.4,7.19587]
[1744282582145,2.93967,1593.6,1593.5,1.25595]
[1744282582939,1.25595,1593.5,1593.4,5.9399]
[1744282583192,1.25603,1593.4,1593.3,40.8]
[1744282583639,2.93983,1593.4,1593.3,40.8]
[1744282583842,1.25611,1593.3,1593.2,3.2078]
[1744282584143,3.98121,1593.3,1593.2,3.2078]
[1744282584833,7.7251,1593.3,1593.0,42.05634]
[1744282585042,1.66,1593.2,1593.0,40.8]
[1744282585238,1.66,1593.2,1593.1,1.25626]
[1744282585540,2.91618,1593.2,1593.1,1.25626]
[1744282586043,2.91618,1593.2,1593.0,1.25629]
[1744282586243,1.66,1593.1,1593.0,1.25629]
[1744282586944,1.25634,1593.0,1592.9,51.23655019]
[1744282587145,1.25634,1593.0,1592.9,40.80944019]
[1744282587333,1.66,1593.1,1593.0,1.25634]
[1744282588144,1.66,1593.1,1593.0,2.85094]
[1744282588646,2.91626,1593.1,1593.0,2.85094]
[1744282589545,1.25634,1593.0,1592.9,4.47361019]
[1744282589746,2.95664,1593.0,1592.9,4.47361019]
[1744282589933,1.7003,1593.0,1592.9,1.26581019]
[1744282590137,2.95664,1593.0,1592.9,0.00944019]
[1744282590686,2.95664,1593.0,1592.9,1.26586019]
[1744282591775,2.95664,1593.0,1592.9,0.00944019]
[1744282594147,2.95664,1593.0,1592.9,1.26586019]
[1744282594749,2.95664,1593.0,1592.9,0.00944019]
[1744282596542,9.65927659,1593.9,1593.6,1.25587]
[1744282596742,11.21027659,1593.9,1593.6,4.46367]
[1744282597079,12.46592659,1593.9,1593.6,4.46367]
[1744282597240,8.80121802,1593.8,1593.6,8.31987]
[1744282597445,7.25021802,1593.8,1593.6,13.31987]
[1744282597653,7.25021802,1593.8,1593.6,8.31987]
[1744282599141,9.65927659,1593.8,1593.6,7.064]
[1744282599451,9.65927659,1593.8,1593.7,2.92859]
[1744282600850,11.24867659,1593.8,1593.7,2.92859]
[1744282602554,9.65927659,1593.8,1593.7,2.92859]
[1744282603053,11.33457659,1593.8,1593.7,2.92859]
[1744282603475,9.65927659,1593.8,1593.7,2.92859]
[1744282606557,1.6753,1594.0,1593.9,1.25563]
[1744282606851,1.6753,1594.0,1593.8,1.6503]
[1744282607046,1.6753,1594.0,1593.8,1.26513019]
[1744282607242,1.25563,1593.9,1593.8,1.26513019]
[1744282607453,1.6753,1594.0,1593.8,1.26513019]
[1744282607655,2.93087,1594.0,1593.8,1.26513019]
[1744282607855,1.6545,1593.9,1593.8,1.26513019]
[1744282608555,1.6545,1593.9,1593.8,2.91543019]
[1744282609162,4.84487453,1594.3,1593.8,17.87239334]
[1744282609457,7.80055453,1594.3,1594.1,1.25546]
[1744282609755,1.7003,1594.2,1594.1,1.25546]
[1744282610563,2.9557,1594.2,1594.1,1.25546]
[1744282611060,1.7003,1594.2,1594.1,1.25546]
[1744282611959,2.9557,1594.2,1594.1,1.25546]
[1744282612760,1.7003,1594.2,1594.1,1.25546]
[1744282612950,2.9557,1594.2,1594.1,1.25546]
[1744282613654,1.7003,1594.2,1594.1,1.25546]
[1744282613858,2.9557,1594.2,1594.1,1.25546]
[1744282615159,1.7003,1594.2,1594.1,1.25546]
[1744282616463,1.7003,1594.2,1594.0,1.6392]
[1744282616666,2.29709,1594.1,1594.0,1.2555]
[1744282616962,1.0416,1594.1,1594.0,1.2555]
[1744282617364,3.94827,1594.1,1594.0,1.2555]
[1744282617568,3.94827,1594.1,1593.9,4.812]
[1744282617569,1.25555,1594.0,1593.9,4.812]
[1744282617764,2.90675,1594.0,1593.9,3.2078]
[1744282617961,3.98465,1594.0,1593.9,4.46343]
[1744282619369,2.7291,1594.0,1593.9,4.46343]
[1744282619670,3.98465,1594.0,1593.9,4.46343]
[1744282620707,2.90675,1594.0,1593.9,4.46343]
[1744282621469,1.6512,1594.0,1593.9,4.46343]
[1744282621658,2.90675,1594.0,1593.9,4.46343]
[1744282622766,2.90675,1594.0,1593.9,1.25563]
[1744282622967,1.25563,1593.9,1593.8,6.21364019]
[1744282623166,2.83653,1593.9,1593.8,6.21364019]
[1744282624174,1.5809,1593.9,1593.8,7.46928019]
[1744282624370,1.5809,1593.9,1593.8,2.95928019]
[1744282624771,2.29712,1594.1,1594.0,1.25555]
[1744282625017,3.89112,1594.1,1594.0,1.25555]
[1744282627575,3.89112,1594.1,1594.0,2.95675]
[1744282631682,2.6356,1594.1,1593.9,3.2078]
[1744282631879,1.25563,1593.9,1593.8,0.00944019]
[1744282632582,1.25563,1593.9,1593.8,1.26515019]
[1744282633172,1.25563,1593.9,1593.8,2.87965019]
[1744282634476,1.25563,1593.9,1593.8,1.26515019]
[1744282634975,3.2078,1594.3,1593.8,8.57186334]
[1744282635177,7.26731179,1594.6,1594.2,3.2078]
[1744282635480,7.66473453,1594.5,1594.3,5.78627]
[1744282635694,7.26731179,1594.4,1594.3,9.65487]
[1744282640282,1.5647,1594.5,1594.4,1.25524]
[1744282640582,1.5647,1594.5,1594.4,6.13184]
[1744282642377,6.5647,1594.5,1594.2,3.2078]
[1744282642573,1.25532,1594.3,1594.2,3.2078]
[1744282643381,1.25532,1594.3,1594.2,4.4632]
[1744282643382,1.1203,1594.3,1594.2,4.4632]
[1744282643582,2.37562,1594.3,1594.2,3.2078]
[1744282643884,4.02552,1594.3,1594.2,3.2078]
[1744282644085,2.7702,1594.3,1594.2,4.4632]
[1744282644792,4.02552,1594.3,1594.2,3.2078]
[1744282645087,4.02552,1594.3,1594.2,4.4632]
[1744282645484,4.02552,1594.3,1594.2,3.2078]
[1744282647277,4.02552,1594.3,1594.2,4.4632]
[1744282647985,4.02552,1594.3,1594.2,3.2078]
[1744282648485,1.25545,1594.2,1594.0,11.691]
[1744282648783,2.93805,1594.2,1594.1,1.25547]
[1744282649572,1.25547,1594.1,1594.0,3.2078]
[1744282649786,2.93807,1594.1,1594.0,3.2078]
[1744282654391,4.05487,1594.1,1594.0,3.2078]
[1744282657493,8.90842438,1594.1,1594.0,3.2078]
[1744282660392,4.85355438,1594.1,1594.0,4.46335]
[1744282660592,4.85355438,1594.1,1594.0,14.04635]
[1744282660986,4.85355438,1594.1,1594.0,15.12235]
[1744282662191,12.12086617,1594.2,1594.1,1.25547]
[1744282662390,12.12086617,1594.2,1594.1,3.97717]
[1744282663296,12.12086617,1594.2,1594.1,12.53959315]
[1744282663498,1.87965626,1594.4,1594.3,1.25532]
[1744282663796,11.91870725,1594.5,1594.4,1.25524]
[1744282663988,11.91870725,1594.5,1594.4,7.53416315]
[1744282664295,14.70986565,1594.8,1594.7,1.255]
[1744282664495,13.85773618,1594.8,1594.7,12.60822315]
[1744282664825,13.85773618,1594.8,1594.7,58.40822315]
[1744282665193,9.34755278,1594.8,1594.7,58.40822315]
[1744282665391,4.85390938,1594.8,1594.7,58.40822315]
[1744282665590,7.83165105,1594.9,1594.8,1.25492]
[1744282665903,1.5708,1595.5,1595.4,1.25445]
[1744282666084,1.5708,1595.5,1595.4,9.04425]
[1744282666288,24.0751242,1595.8,1595.6,1.25429]
[1744282666484,1.25437,1595.5,1595.4,3.2078]
[1744282666993,1.25437,1595.5,1595.3,0.00941029]
[1744282666994,1.25445,1595.4,1595.3,0.00941029]
[1744282667194,2.38867409,1595.4,1595.3,0.00941029]
[1744282667396,4.08157409,1595.4,1595.3,0.00941029]
[1744282668093,1.25461,1595.2,1595.1,4.582]
[1744282668294,2.82712409,1595.3,1595.0,3.2078]
[1744282668500,1.25469,1595.1,1595.0,3.2078]
[1744282668996,2.38891409,1595.1,1595.0,3.2078]
[1744282669590,1.25477,1595.0,1594.9,0.00941029]
[1744282669798,4.08119409,1595.0,1594.9,0.00941029]
[1744282672495,2.82642409,1595.0,1594.9,0.00941029]
[1744282672895,4.08119409,1595.0,1594.9,0.00941029]
[1744282678204,2.40094,1595.1,1595.0,1.25477]
[1744282678397,3.90832409,1595.1,1595.0,6.00977]
[1744282678598,1.13422409,1595.1,1595.0,6.00977]
[1744282678810,0.00931061,1595.2,1595.1,1.25469]
[1744282679005,1.1435347,1595.2,1595.1,7.39049]
[1744282679691,2.3981447,1595.2,1595.1,6.1358]
[1744282679996,2.3981447,1595.2,1595.1,5.83469]
[1744282680805,2.3981447,1595.2,1595.1,7.39049]
[1744282680997,1.1435347,1595.2,1595.1,7.39049]
[1744282681198,2.3981447,1595.2,1595.1,7.39049]
[1744282681397,1.1435347,1595.2,1595.1,7.39049]
[1744282681595,0.00931061,1595.2,1595.1,12.39049]
[1744282681793,0.00931061,1595.2,1595.1,10.95291315]
[1744282682006,0.00931061,1595.2,1595.1,8.14242315]
[1744282682007,2.3981447,1595.2,1595.1,8.14242315]
[1744282682207,1.1435347,1595.2,1595.1,9.39711315]
[1744282682699,2.3981447,1595.2,1595.1,4.58]
[1744282682901,4.0334447,1595.2,1595.1,4.58]
[1744282684216,4.0334447,1595.2,1595.0,3.2078]
[1744282684217,1.25469,1595.1,1595.0,3.2078]
[1744282684505,1.25477,1595.0,1594.9,4.58941029]
[1744282684704,3.46679409,1595.0,1594.9,4.58941029]
[1744282684907,5.13869409,1595.0,1594.9,4.58941029]
[1744282685306,5.13869409,1595.0,1594.9,0.00941029]
[1744282685814,12.02100409,1595.0,1594.6,3.2078]
[1744282686112,1.255,1594.7,1594.6,13.00270018]
[1744282686604,2.38922409,1594.7,1594.6,13.00270018]
[1744282686802,2.38922409,1594.7,1594.6,14.25778018]
[1744282687107,2.38922409,1594.7,1594.6,13.00270018]
[1744282688816,3.13612,1595.5,1594.7,3.13744]
[1744282689108,2.92222061,1595.2,1595.1,3.2078]
[1744282691412,2.92222061,1595.2,1595.1,4.46249]
[1744282691614,2.92222061,1595.2,1595.1,3.2078]
[1744282693814,1.25477,1595.0,1594.9,45.26264]
[1744282694740,2.91937,1595.0,1594.9,45.26264]
[1744282694906,1.6646,1595.0,1594.9,45.26264]
[1744282696107,2.91937,1595.0,1594.9,45.26264]
[1744282696313,2.91937,1595.0,1594.9,44.0078]
[1744282697205,2.91937,1595.0,1594.9,3.2078]
[1744282699717,1.25492,1594.8,1594.7,3.2078]
[1744282700120,1.25508,1594.6,1594.5,4.58741029]
[1744282700820,2.91978,1594.6,1594.5,4.58741029]
[1744282701017,2.91978,1594.6,1594.5,0.00941029]
[1744282708322,2.91978,1594.6,1594.5,1.26457029]
[1744282708569,2.91978,1594.6,1594.5,0.00941029]
[1744282715114,2.34017,1594.7,1594.6,1.25508]
[1744282715317,2.34017,1594.7,1594.6,4.46288]
[1744282715520,1.5764,1594.8,1594.7,1.255]
[1744282715726,1.5764,1594.8,1594.7,2.8329]
[1744282715968,1.2549,1594.9,1594.8,1.25492]
[1744282716130,1.25484,1594.9,1594.8,6.04056]
[1744282716331,1.25484,1594.9,1594.8,4.7857]
[1744282716627,2.8312,1595.0,1594.9,1.25484]
[1744282716829,2.8312,1595.0,1594.9,2.83274]
[1744282717131,1.25484,1594.9,1594.8,4.46267]
[1744282717434,2.83124,1594.9,1594.8,4.46272]
[1744282718231,2.83124,1594.9,1594.8,3.2078]
[1744282719031,1.255,1594.7,1594.6,7.7798]
[1744282719431,1.255,1594.7,1594.6,17.57470018]
[1744282719632,2.8741,1594.7,1594.6,17.57470018]
[1744282719926,2.8741,1594.7,1594.6,18.82978018]
[1744282719927,1.6191,1594.7,1594.6,18.82978018]
[1744282720924,1.0744,1594.8,1594.7,1.255]
[1744282721128,1.6191,1594.9,1594.8,1.25492]
[1744282721328,1.6191,1594.9,1594.8,4.46272]
[1744282721832,7.08882,1595.0,1594.9,1.25484]
[1744282722029,8.78972,1595.0,1594.9,2.87364]
[1744282723034,0.00931061,1595.2,1595.1,1.25469]
[1744282723722,0.00931061,1595.2,1595.1,2.87349]
[1744282724330,2.87202061,1595.2,1595.1,1.6188]
[1744282724537,0.00931061,1595.2,1595.1,1.25469]
[1744282724735,0.00931061,1595.2,1595.1,2.80019]
[1744282725235,0.00931061,1595.2,1595.1,11.36261315]
[1744282725430,0.00931061,1595.2,1595.1,6.36261315]
[1744282725939,6.1e-07,1595.2,1595.1,11.36261315]
[1744282726932,6.1e-07,1595.2,1595.1,6.36261315]
[1744282727137,6.1e-07,1595.2,1595.1,11.36261315]
[1744282727634,6.1e-07,1595.2,1595.1,6.36261315]
[1744282728129,6.1e-07,1595.2,1595.1,2.80019]
[1744282728438,6.1e-07,1595.2,1595.1,48.17119]
[1744282728938,1.67950061,1595.2,1595.1,48.17119]
[1744282731341,6.1e-07,1595.2,1595.1,48.17119]
[1744282733142,6.1e-07,1595.2,1595.1,46.62569]
[1744282733545,1.54540061,1595.2,1595.1,46.62569]
[1744282734245,1.54540061,1595.2,1595.1,42.05469]
[1744282742543,1.54540061,1595.2,1595.1,2.85609]
[1744282742949,1.54540061,1595.2,1595.1,3.92479]
[1744282743845,1.54540061,1595.2,1595.1,1.25469]
[1744282745246,2.61520061,1595.2,1595.1,1.25469]
[1744282745949,1.54540061,1595.2,1595.1,1.25469]
[1744282748739,1.25469,1595.1,1595.0,6.77022315]
[1744282749464,1.25469,1595.1,1595.0,3.2078]
[1744282749646,1.25469,1595.1,1595.0,4.46257]
[1744282750145,1.25469,1595.1,1595.0,3.2078]
[1744282750548,1.25469,1595.1,1595.0,4.46257]
[1744282750846,1.25469,1595.1,1595.0,3.2078]
[1744282751246,1.25469,1595.1,1595.0,4.46257]
[1744282751949,1.25469,1595.1,1595.0,3.2078]
[1744282757156,1.25477,1595.0,1594.9,5.76781]
[1744282757351,3.93217,1595.0,1594.9,8.97561]
[1744282760560,3.93217,1595.0,1594.9,7.7208]
[1744282762383,3.93217,1595.0,1594.9,4.513]
[1744282763459,3.93217,1595.0,1594.9,5.76784]
[1744282763658,1.5963,1595.0,1594.9,1.25484]
[1744282763959,6.1e-07,1595.2,1595.1,1.25469]
[1744282764257,6.1e-07,1595.2,1595.1,4.46249]
[1744282764500,6.1e-07,1595.2,1595.1,45.26249]
[1744282764659,6.1e-07,1595.2,1595.1,46.36539]
[1744282766956,6.1e-07,1595.2,1595.1,45.26249]
[1744282767161,1.25461061,1595.2,1595.1,8.97549]
[1744282767460,1.25461061,1595.2,1595.1,7.7208]
[1744282767656,2.33111061,1595.2,1595.1,7.7208]
[1744282768161,2.33111061,1595.2,1595.1,3.2078]
[1744282768658,3.13679,1595.1,1594.9,3.2078]
[1744282768858,1.12,1595.0,1594.9,3.2078]
[1744282769055,4.00717,1595.0,1594.9,3.2078]
[1744282770365,4.00717,1595.0,1594.9,4.46264]
[1744282770556,4.00717,1595.0,1594.9,3.2078]
[1744282770754,4.00717,1595.0,1594.9,4.46264]
[1744282772162,2.7524,1595.0,1594.9,4.46264]
[1744282773161,4.00717,1595.0,1594.9,4.46264]
[1744282773564,4.00717,1595.0,1594.9,6.08624]
[1744282773965,2.7524,1595.0,1594.9,6.08624]
[1744282774164,1.07650061,1595.2,1594.9,6.08624]
[1744282774464,1.25477,1595.0,1594.9,4.46264]
[1744282774760,1.25477,1595.0,1594.9,3.2078]
[1744282775359,2.80824,1595.1,1595.0,1.25477]
[1744282775758,2.80824,1595.1,1594.9,4.46259]
[1744282775759,1.25477,1595.0,1594.9,4.46259]
[1744282775962,2.83147,1595.0,1594.9,4.46259]
[1744282776565,2.83147,1595.0,1594.9,1.25479]
[1744282776764,2.83147,1595.0,1594.9,4.46259]
[1744282777367,2.83147,1595.0,1594.9,3.2078]
[1744282777670,2.83147,1595.0,1594.8,15.61412721]
[1744282777671,1.25484,1594.9,1594.8,9.84626721]
[1744282777860,5.11674,1594.9,1594.8,13.05406721]
[1744282778669,10.11674,1594.9,1594.8,9.84626721]
[1744282779666,5.11674,1594.9,1594.8,9.84626721]
[1744282781970,1.255,1594.7,1594.6,3.2078]
[1744282782371,1.25508,1594.6,1594.5,0.00941029]
[1744282783372,2.42448,1594.6,1594.5,0.00941029]
[1744282786176,2.42448,1594.6,1594.5,1.26457029]
[1744282786377,1.25508,1594.6,1594.5,1.26457029]
[1744282786574,5.99270023,1594.9,1594.5,6.63331029]
[1744282786775,8.79067023,1594.9,1594.8,4.46272]
[1744282787374,1.255,1594.7,1594.6,4.436]
[1744282787575,1.255,1594.7,1594.6,5.69108]
[1744282788178,1.255,1594.7,1594.6,4.436]
[1744282789180,1.255,1594.7,1594.6,5.69108]
[1744282789375,1.255,1594.7,1594.6,1.25508]
[1744282789581,1.25504,1594.7,1594.6,1.25504]
[1744282789878,1.25504,1594.7,1594.6,2.88004]
[1744282791175,1.25504,1594.7,1594.6,1.25508]
[1744282791396,1.25508,1594.6,1594.5,3.21721029]
[1744282791679,1.25508,1594.6,1594.5,4.80441029]
[1744282793076,1.25508,1594.6,1594.5,6.05950029]
[1744282793509,1.5431,1594.8,1594.5,6.05950029]
[1744282793510,1.25508,1594.7,1594.6,1.25508]
[1744282793780,1.25508,1594.7,1594.6,5.69108]
[1744282795285,2.79809,1594.8,1594.7,1.255]
[1744282795487,2.79802,1594.8,1594.7,4.4628]
[1744282795681,5.834,1595.1,1594.7,3.2078]
[1744282795887,2.95467,1595.0,1594.9,4.46262]
[1744282796087,1.6999,1595.0,1594.9,8.89862]
[1744282797397,7.41719023,1595.1,1595.0,1.25477]
[1744282797592,9.01259023,1595.1,1595.0,1.25477]
[1744282797788,9.01259023,1595.1,1594.9,7.6438]
[1744282797789,1.25477,1595.0,1594.9,7.6438]
[1744282797995,2.85017,1595.0,1594.9,7.6438]
[1744282798597,2.85017,1595.0,1594.9,8.89864]
[1744282798818,2.85017,1595.0,1594.9,7.6438]
[1744282800301,1.5954,1595.0,1594.9,8.89864]
[1744282800496,4.86640023,1595.1,1595.0,1.25477]
[1744282800796,4.86640023,1595.1,1595.0,8.17869315]
[1744282800997,4.86640023,1595.1,1595.0,13.17869315]
[1744282801198,4.86640023,1595.1,1595.0,53.97869315]
[1744282801400,6.1e-07,1595.2,1595.1,1.25469]
[1744282801600,6.1e-07,1595.2,1595.1,6.08669]
[1744282801800,6.1e-07,1595.2,1595.1,11.08669]
[1744282802903,6.1e-07,1595.2,1595.1,55.44911315]
[1744282803201,6.1e-07,1595.2,1595.1,55.95455039]
[1744282804698,6.1e-07,1595.2,1595.1,56.58175039]
[1744282804903,1.60608084,1595.4,1595.3,1.25453]
[1744282805099,1.8e-06,1595.5,1595.4,1.25445]
[1744282805291,1.8e-06,1595.5,1595.4,7.01527315]
[1744282805494,1.8e-06,1595.5,1595.4,12.01527315]
[1744282805699,1.8e-06,1595.5,1595.4,52.81527315]
[1744282806193,9.68406374,1595.7,1595.6,1.25429]
[1744282806399,9.68406374,1595.7,1595.6,104.49409]
[1744282806599,6.50173894,1596.1,1596.0,1.25398]
[1744282806900,14.02444303,1596.1,1596.0,7.6428]
[1744282807099,20.25434303,1596.1,1596.0,7.6428]
[1744282807406,20.25434303,1596.1,1596.0,3.2078]
[1744282807611,20.25434303,1596.1,1595.9,4.44441029]
[1744282807612,1.25398,1596.0,1595.9,4.44441029]
[1744282807799,10.43828409,1596.0,1595.9,4.44441029]
[1744282807999,15.43828409,1596.0,1595.9,4.44441029]
[1744282808899,15.43828409,1596.0,1595.9,0.00941029]
[1744282809507,3.06100409,1595.9,1595.2,1.25458]
[1744282809701,1.25451,1595.4,1595.3,4.46233]
[1744282809900,1.25444,1595.5,1595.3,4.46233]
[1744282810103,1.25445,1595.4,1595.3,4.4623]
[1744282810307,9.02330409,1595.7,1595.3,4.4623]
[1744282810502,1.25445,1595.4,1595.3,4.4623]
[1744282810801,4.64630409,1595.6,1595.3,3.21721029]
[1744282811111,1.25081029,1595.7,1595.3,0.00941029]
[1744282811112,1.25445,1595.4,1595.3,0.00941029]
[1744282811406,1.5853,1595.5,1595.4,1.25445]
[1744282811607,4.64630409,1595.5,1595.4,15.5033673]
[1744282813104,4.64630409,1595.5,1595.4,17.0527673]
[1744282813299,1.5853,1595.5,1595.4,17.0527673]
[1744282813609,1.2804,1595.6,1595.5,1.25437]
[1744282813811,0.00941029,1595.7,1595.6,1.25429]
[1744282814196,3.07041438,1595.7,1595.6,1.25429]
[1744282815311,4.35081438,1595.7,1595.6,1.25429]
[1744282815505,1.28981029,1595.7,1595.6,1.25429]
[1744282815709,1.28981029,1595.7,1595.6,43.67729]
[1744282817414,0.00941029,1595.7,1595.6,47.23971315]
[1744282819012,3.07041438,1595.7,1595.6,44.36242315]
[1744282819208,4.32463438,1595.7,1595.6,45.61671315]
[1744282819404,4.32463438,1595.7,1595.6,44.36242315]
[1744282819610,3.07041438,1595.7,1595.6,44.36242315]
[1744282819817,3.07041438,1595.7,1595.6,45.61671315]
[1744282820112,4.32463438,1595.7,1595.6,44.36242315]
[1744282821015,12.53243438,1595.7,1595.6,3.56242315]
[1744282821209,11.27821438,1595.7,1595.3,7.66621029]
[1744282821452,1.25445,1595.4,1595.3,7.66621029]
[1744282821611,1.25445,1595.4,1595.3,4.45841029]
[1744282821812,4.31545409,1595.4,1595.3,0.00941029]
[1744282822318,1.25461,1595.2,1595.1,8.91149]
[1744282822521,4.31559409,1595.3,1595.1,7.6568]
[1744282822720,3.06100409,1595.4,1595.3,1.25453]
[1744282823018,3.43350409,1595.4,1595.3,1.25453]
[1744282823615,2.5068,1595.6,1595.5,1.25437]
[1744282823818,2.47462502,1595.6,1595.5,8.91117]
[1744282824919,2.47462502,1595.6,1595.5,13.91117]
[1744282825117,1.20857502,1595.6,1595.5,13.91117]
[1744282826022,1.12397502,1595.6,1595.5,13.91117]
[1744282826320,1.12397502,1595.6,1595.5,8.91117]
[1744282826522,1.5785,1595.6,1595.5,8.91117]
[1744282826712,4.63950409,1595.6,1595.5,8.91117]
[1744282828523,7.19779409,1595.6,1595.5,8.91117]
[1744282828966,7.19779409,1595.6,1595.5,7.6568]
[1744282829124,7.19779409,1595.6,1595.5,4.449]
[1744282829325,7.19779409,1595.6,1595.5,5.70337]
[1744282829619,5.94350409,1595.6,1595.5,5.70337]
[1744282829924,5.94350409,1595.6,1595.5,8.91117]
[1744282832222,7.19779409,1595.6,1595.5,8.91117]
[1744282832428,7.19779409,1595.6,1595.5,4.449]
[1744282832926,5.94350409,1595.6,1595.5,5.70337]
[1744282833521,5.94350409,1595.6,1595.5,8.91117]
[1744282837429,4.63950409,1595.6,1595.5,8.91117]
[1744282837627,0.00941029,1595.7,1595.6,1.25429]
[1744282837985,0.00941029,1595.7,1595.6,2.81379]
[1744282838121,0.00941029,1595.7,1595.6,9.33001315]
[1744282838720,0.00941029,1595.7,1595.6,4.33001315]
[1744282840319,0.00941029,1595.7,1595.6,9.33001315]
[1744282840515,2.9e-07,1595.7,1595.6,9.33001315]
[1744282840925,2.9e-07,1595.7,1595.6,103.38279]
[1744282841161,1.25345,1596.7,1595.9,3.13515]
[1744282841429,1.25345,1596.7,1596.5,3.2078]
[1744282841430,7.28280409,1596.6,1596.5,3.2078]
[1744282841631,7.28280409,1596.6,1596.5,8.93539]
[1744282842130,1.7056,1596.6,1596.5,8.93539]
[1744282842322,4.76660409,1596.6,1596.5,8.93539]
[1744282842929,4.76660409,1596.6,1596.5,10.47729]
[1744282843532,0.00941029,1596.7,1596.6,1.25351]
[1744282843829,3.07041438,1596.7,1596.6,1.25351]
[1744282845025,4.75351438,1596.7,1596.6,1.25351]
[1744282846530,4.75351438,1596.7,1596.6,2.87771]
[1744282846929,1.69251029,1596.7,1596.6,2.87771]
[1744282848033,4.75351438,1596.7,1596.6,1.25351]
[1744282849438,1.25351,1596.6,1596.5,4.72402315]
[1744282849738,5.91151409,1596.6,1596.5,9.19602315]
[1744282850131,5.91151409,1596.6,1596.5,42.31622315]
[1744282850330,10.91151409,1596.6,1596.5,42.31622315]
[1744282850534,10.91151409,1596.6,1596.5,40.8]
[1744282850742,1.25359,1596.5,1596.4,14.27386041]
[1744282850940,7.11419409,1596.5,1596.4,14.27386041]
[1744282851240,12.11419409,1596.5,1596.4,55.07386041]
[1744282851940,7.11419409,1596.5,1596.4,14.27386041]
[1744282852140,7.11419409,1596.5,1596.4,15.52753041]
[1744282852438,7.11419409,1596.5,1596.4,14.27386041]
[1744282852829,7.11419409,1596.5,1596.4,15.52753041]
[1744282853325,12.11419409,1596.5,1596.4,9.80186041]
[1744282853736,12.11419409,1596.5,1596.4,0.00941029]
[1744282854950,1.25367,1596.4,1596.3,40.8]
[1744282855132,1.25367,1596.4,1596.2,4.472]
[1744282855133,1.25374,1596.3,1596.2,4.472]
[1744282855328,4.31474409,1596.3,1596.2,4.472]
[1744282855535,5.94364409,1596.3,1596.2,45.272]
[1744282855733,5.94364409,1596.3,1596.2,4.472]
[1744282855934,12.82444409,1596.3,1595.9,1.25405]
[1744282856233,1.25402,1596.0,1595.9,42.05405]
[1744282856539,1.25402,1596.0,1595.9,5.73546029]